Workbook

Sheet 01.07.2017
D1: Приложение № 11
D2: к постановлению администрации
D3: ЗАТО г.Радужный Владимирской области
D4: от 26.07.2017 года № 1124
C7: Сведения о фактической численности муниципальных служащих, работников казенных и бюджетных учреждений и расходы на их денежное содержание за 1 полугодие 2017 года
E9: Едн.изм.тыс.руб.
A10: №п/п | B10: Раздел (подраздел) | C10: Наименование разделов (подразделов) расходов | D10: Фактическая численность на 01.07.2017 (чел.) | E10: Годовой фонд оплаты труда с начислениями | F10: Исполнено за отчетный период
A11: 1 | B11: 2 | C11: 3 | D11: 4 | E11: 5 | F11: 6
A12: 1 | B12: 0100 | C12: Общегосударственные вопросы, всего, в том числе | D12: =D13+D14+D15+D16+D17 -> 66 | E12: =E14+E15+E16+E17 -> 26804.04 | F12: =F14+F15+F16+F17 -> 12997.59
A13: 1.1 | B13: 0102 | C13: Функционирование высшего должностного лица субъекта Российской Федерации и муниципального образования | D13: 1 | E13: 0 | F13: 0
A14: 1.2 | B14: 0103 | C14: Функционирование представительных органов местного самоуправления | D14: 3 | E14: =997.79+301.33 -> 1299.12 | F14: =496.03+149.8 -> 645.83
A15: 1.3 | B15: 0104 | C15: Функционирование местных администраций | D15: 17 | E15: =7223.39+2125.31 -> 9348.7 | F15: =3242.03+1024.7 -> 4266.73
A16: 1.4 | B16: 0106 | C16: Обеспечение деятельности финансовых органов | D16: 10 | E16: =3384.9+1020.2 -> 4405.1 | F16: =1653.23+492.26 -> 2145.49
A17: 1.5 | B17: 0113 | C17: Другие общегосударственные вопросы | D17: 35 | E17: =9020.47+2730.65 -> 11751.12 | F17: =4553.82+1385.72 -> 5939.54
A18: 2 | B18: 0300 | C18: Национальная безопасность и правоохранительная деятельность, всего, в т. ч. | D18: 5 | E18: =E19 -> 1931.79 | F18: =F19 -> 951.22
A19: 2.1 | B19: 0309 | C19: Защита населения и территории от последствий чрезвычайных ситуаций природного и техногенного характера,гражданская оборона | D19: 5 | E19: =1483.71+448.08 -> 1931.79 | F19: =734.81+216.41 -> 951.22
A20: 3. | B20: 0400 | C20: Национальная экономика | D20: 40 | E20: =9817.05+2964.75 -> 12781.8 | F20: =4452.03+1409.29 -> 5861.32
A21: 4 | B21: 0500 | C21: Жилищно-коммунальное хозяйство | D21: 188 | E21: =34225.92+10336.15 -> 44562.07 | F21: =17334.3+5146.29 -> 22480.59
A22: 5 | B22: 0700 | C22: Образование,всего,в том числе | D22: =D23+D24+D26 -> 561 | E22: =E23+E24+E26 -> 182304.91 | F22: =F23+F24+F26 -> 99049.91
A23: 5.1 | B23: 0701 | C23: Дошкольное образование | D23: 198 | E23: =57559.4+17389.99 -> 74949.39 | F23: =28618.17+9068.63 -> 37686.8
A24: 5.2 | B24: 0702 | C24: Общее образование, всего, в том числе | D24: 338 | E24: =76045.75+22982.88 -> 99028.63 | F24: =43981.97+13316.08 -> 57298.05
A25: 5.2.1 | C25: Общеобразовательные учреждения | D25: 193 | E25: =50166.15+15167.55 -> 65333.7 | F25: =30007.43+9031.69 -> 39039.12
A26: 5.3. | B26: 0709 | C26: Другие вопросы в области образования, всего, в том числе | D26: 25 | E26: =6395.46+1931.43 -> 8326.89 | F26: =3130.21+934.85 -> 4065.06
A27: 5.3.1 | C27: Централизованные бухгалтерии | D27: 15 | E27: =3413.2+1031.03 -> 4444.23 | F27: =1615+713.3 -> 2328.3
A28: 6. | B28: 0800 | C28: Культура, кинематография | D28: =D29+D30 -> 86 | E28: =E29+E30 -> 24751.28 | F28: =F29+F30 -> 12596.32
A29: 6.1 | B29: 0801 | C29: Культура | D29: 71 | E29: =14448.93+4363.54 -> 18812.47 | F29: =7450.41+2434.89 -> 9885.3
A30: 6.2 | B30: 0804 | C30: Другие вопросы в области культуры,кинематографии | D30: 15 | E30: =4561.72+1377.09 -> 5938.81 | F30: =2050.24+660.78 -> 2711.02
A31: 8 | B31: 1000 | C31: Социальная политика | D31: 2 | E31: =E32 -> 833.5 | F31: =F32 -> 391.75
A32: 8.1 | B32: 1004 | C32: Охрана семьи и детства | D32: 2 | E32: =640.2+193.3 -> 833.5 | F32: =300.88+90.87 -> 391.75
C33: Всего: | D33: =D31+D28+D22+D21+D20+D18+D12 -> 948 | E33: =E31+E28+E22+E21+E20+E18+E12 -> 293969.39 | F33: =F31+F28+F22+F21+F20+F18+F12 -> 154328.7
C38: Руководитель | E38: О.М.Горшкова
C39: Зав.бюджетным отделом | E39: Л.И.Заболотских
E42: =F33-154328.7 -> 0
B56: Исп. В.Н. Милованова
B57: 3-67-17
